fUST/lending_fUST_20250623
["ID","MTS","AMOUNT","RATE_DAILY","PERIOD"]
[367155546,1750677048775,-500.0,0.00021917,2]
[367155548,1750677048785,-460.0,0.00021917,2]
[367155550,1750677048795,-460.0,0.00021917,2]
[367155552,1750677048804,-989.18,0.00021917,2]
[367155554,1750677048814,-460.0,0.00021917,2]
[367155556,1750677048824,-460.0,0.00021917,2]
[367155558,1750677048834,-1236.92,0.00021917,2]
[367155559,1750677048844,-460.0,0.00021917,2]
[367155562,1750677048854,-460.0,0.00021917,2]
[367155563,1750677048863,-460.0,0.00021917,2]
[367155566,1750677048873,-460.0,0.00021917,2]
[367155568,1750677048884,-893.4,0.00021917,2]
[367155570,1750677048894,-478.96,0.00021917,2]
[367155572,1750677048903,-570.41,0.00021917,2]
[367155574,1750677048913,-460.0,0.00021917,2]
[367155576,1750677048923,-460.0,0.00021917,2]
[367155578,1750677048932,-264.3309134,0.00021917,2]
[367155580,1750677048942,-460.0,0.00021917,2]
[367155582,1750677048951,-664.76,0.00021917,2]
[367155584,1750677048961,-460.0,0.00021917,2]
[367155586,1750677048970,-697.75,0.00021917,2]
[367155588,1750677048980,-460.0,0.00021917,2]
[367155590,1750677048990,-460.0,0.00021917,2]
[367155592,1750677049000,-460.0,0.00021917,2]
[367155594,1750677049010,-713.11,0.00021917,2]
[367155596,1750677049020,-460.0,0.00021917,2]
[367155598,1750677049030,-460.0,0.00021917,2]
[367155600,1750677049040,-460.0,0.00021917,2]
[367155602,1750677049049,-466.79,0.00021917,2]
[367155604,1750677049059,-460.0,0.00021917,2]
[367155606,1750677049069,-449.78252903,0.00021917,2]
[367155608,1750677049079,-655.58,0.00021917,2]
[367155610,1750677049089,-460.0,0.00021917,2]
[367155612,1750677049099,-545.66970668,0.00021917,2]
[367155614,1750677049109,-460.0,0.00021917,2]
[367155616,1750677049119,-460.33,0.00021917,2]
[367155618,1750677049128,-724.25,0.00021917,2]
[367155620,1750677049138,-460.0,0.00021917,2]
[367155622,1750677049148,-460.79084207,0.00021917,2]
[367155624,1750677049157,-460.0,0.00021917,2]
[367155626,1750677049166,-460.0,0.00021917,2]
[367155628,1750677049175,-154.86319216,0.00021917,2]
[367155630,1750677049185,-460.0,0.00021917,2]
[367155632,1750677049195,-460.0,0.00021917,2]
[367155635,1750677049205,-460.0,0.00021917,2]
[367155637,1750677049214,-460.0,0.00021917,2]
[367155639,1750677049224,-460.17648486,0.00021917,2]
[367155641,1750677049233,-986.33,0.00021917,2]
[367155642,1750677049242,-460.0,0.00021917,2]
[367155645,1750677049252,-460.0,0.00021917,2]
[367155647,1750677049262,-258.71540571,0.00021917,2]
[367155648,1750677049271,-460.0,0.00021917,2]
[367155651,1750677049282,-460.0,0.00021917,2]
[367155653,1750677049292,-460.0,0.00021917,2]
[367155655,1750677049302,-556.08,0.00021917,2]
[367155657,1750677049311,-460.0,0.00021917,2]
[367155659,1750677049321,-460.0,0.00021917,2]
[367155661,1750677049330,-460.0,0.00021917,2]
[367155663,1750677049340,-500.0,0.00021917,2]
[367155665,1750677049349,-402.6225621,0.00021917,2]
[367155667,1750677049359,-601.11,0.00021917,2]
[367155669,1750677049368,-460.0,0.00021917,2]
[367155671,1750677049377,-460.0,0.00021917,2]
[367155673,1750677049386,-1332.77,0.00021917,2]
[367155675,1750677049395,-460.0,0.00021917,2]
[367155676,1750677049404,-460.0,0.00021917,2]
[367155679,1750677049414,-460.0,0.00021917,2]
[367155681,1750677049423,-460.0,0.00021917,2]
[367155683,1750677049433,-766.17,0.00021917,2]
[367155685,1750677049442,-200.0,0.00021917,10]
[367155686,1750677049451,-200.0,0.00021917,10]
[367155689,1750677049460,-200.0,0.00021917,10]
[367155690,1750677049469,-200.0,0.00021917,10]
[367155692,1750677049478,-469.07939754,0.00021917,2]
[367155694,1750677049487,-460.0,0.00021917,2]
[367155697,1750677049496,-460.0,0.00021917,2]
[367155699,1750677049506,-460.0,0.00021917,2]
[367155700,1750677049515,-574.97,0.00021917,2]
[367155703,1750677049524,-460.0,0.00021917,2]
[367155705,1750677049534,-460.0,0.00021917,2]
[367155707,1750677049543,-665.19,0.00021917,2]
[367155709,1750677049553,-460.0,0.00021917,2]
[367155710,1750677049564,-460.0,0.00021917,2]
[367155712,1750677049573,-588.95,0.00021917,2]
[367155715,1750677049583,-586.93,0.00021917,2]
[367155717,1750677049592,-1625.75,0.00021917,2]
[367155719,1750677049602,-648.14,0.00021917,2]
[367155721,1750677049611,-460.0,0.00021917,2]
[367155723,1750677049621,-500.0,0.00021917,2]
[367155725,1750677049630,-500.0,0.00021917,2]
[367155727,1750677049644,-500.0,0.00021917,2]
[367155729,1750677049654,-321.15312975,0.00021917,2]
[367155731,1750677049664,-633.39,0.00021917,2]
[367155733,1750677049674,-354.29571344,0.00021917,2]
[367155735,1750677049683,-496.65,0.00021917,2]
[367155737,1750677049693,-460.0,0.00021917,2]
[367155739,1750677049702,-460.0,0.00021917,2]
[367155741,1750677049711,-460.0,0.00021917,2]
[367155743,1750677049721,-827.62,0.00021917,2]
[367155745,1750677049730,-460.0,0.00021917,2]
[367155747,1750677049739,-460.0,0.00021917,2]
[367155749,1750677049748,-460.0,0.00021917,2]
[367155751,1750677049758,-460.0,0.00021917,2]
[367155753,1750677049766,-460.0,0.00021917,2]
[367155755,1750677049776,-460.0,0.00021917,2]
[367155756,1750677049786,-460.0,0.00021917,2]
[367155759,1750677049796,-578.3,0.00021917,2]
[367155761,1750677049805,-460.0,0.00021917,2]
[367155763,1750677049814,-1278.45,0.00021917,2]
[367155765,1750677049825,-460.0,0.00021917,2]
[367155767,1750677049834,-460.0,0.00021917,2]
[367155769,1750677049843,-781.44,0.00021917,2]
[367155771,1750677049853,-460.0,0.00021917,2]
[367155773,1750677049862,-460.0,0.00021917,2]
[367155775,1750677049873,-460.0,0.00021917,2]
[367155777,1750677049882,-460.0,0.00021917,2]
[367155778,1750677049891,-460.0,0.00021917,2]
[367155779,1750677049900,-460.0,0.00021917,2]
[367155780,1750677049909,-460.0,0.00021917,2]
[367155781,1750677049919,-460.0,0.00021917,2]
[367155782,1750677049928,-474.26,0.00021917,2]
[367155783,1750677049938,-464.23441407,0.00021917,2]
[367155784,1750677049947,-619.91,0.00021917,2]
[367155785,1750677049956,-3645.58,0.00021917,2]
[367155786,1750677049965,-830.85,0.00021917,2]
[367155787,1750677049974,-460.0,0.00021917,2]
[367155788,1750677049983,-910.26,0.00021917,2]
[367155789,1750677049993,-4441.33,0.00021917,2]
[367155791,1750677050002,-460.0,0.00021917,2]
[367155792,1750677050011,-460.0,0.00021917,2]
[367155794,1750677050021,-1539.12,0.00021917,2]
[367155796,1750677050030,-460.0,0.00021917,2]
[367155798,1750677050039,-460.0,0.00021917,2]
[367155800,1750677050048,-347.32576456,0.00021917,2]
[367155802,1750677050057,-460.0,0.00021917,2]
[367155804,1750677050067,-460.0,0.00021917,2]
[367155805,1750677050076,-460.0,0.00021917,2]
[367155807,1750677050085,-460.0,0.00021917,2]
[367155809,1750677050094,-460.0,0.00021917,2]
[367155811,1750677050103,-460.0,0.00021917,2]
[367155813,1750677050112,-460.0,0.00021917,2]
[367155815,1750677050122,-460.0,0.00021917,2]
[367155817,1750677050131,-460.0,0.00021917,2]
[367155819,1750677050141,-460.0,0.00021917,2]
[367155821,1750677050150,-460.0,0.00021917,2]
[367155823,1750677050160,-460.0,0.00021917,2]
[367155825,1750677050170,-732.83,0.00021917,2]
[367155827,1750677050179,-1803.03,0.00021917,2]
[367155829,1750677050188,-460.0,0.00021917,2]
[367155831,1750677050198,-460.0,0.00021917,2]
[367155833,1750677050207,-4195.4,0.00021917,2]
[367155835,1750677050217,-460.0,0.00021917,2]
[367155837,1750677050227,-192.89041772,0.00021917,2]
[367155839,1750677050236,-1022.17,0.00021917,2]
[367155841,1750677050245,-460.0,0.00021917,2]
[367155843,1750677050254,-460.0,0.00021917,2]
[367155845,1750677050263,-460.0,0.00021917,2]
[367155847,1750677050272,-573.04,0.00021917,2]
[367155849,1750677050282,-430.0,0.00021917,2]
[367155851,1750677050291,-1383.27,0.00021917,2]
[367155853,1750677050302,-460.0,0.00021917,2]
[367155855,1750677050311,-6876.6,0.00021917,2]
[367155857,1750677050321,-584.59,0.00021917,2]
[367155859,1750677050330,-460.0,0.00021917,2]
[367155861,1750677050339,-485.82,0.00021917,2]
[367155863,1750677050348,-460.0,0.00021917,2]
[367155865,1750677050357,-460.0,0.00021917,2]
[367155867,1750677050366,-460.0,0.00021917,2]
[367155869,1750677050376,-460.0,0.00021917,2]
[367155871,1750677050385,-460.0,0.00021917,2]
[367155873,1750677050394,-460.0,0.00021917,2]
[367155875,1750677050405,-631.32,0.00021917,2]
[367155877,1750677050415,-460.0,0.00021917,2]
[367155879,1750677050424,-460.0,0.00021917,2]
[367155881,1750677050433,-460.0,0.00021917,2]
[367155883,1750677050443,-628.12,0.00021917,2]
[367155885,1750677050452,-1170.2,0.00021917,2]
[367155887,1750677050462,-675.13,0.00021917,2]
[367155889,1750677050471,-460.0,0.00021917,2]
[367155891,1750677050481,-460.0,0.00021917,2]
[367155893,1750677050490,-1150.48,0.00021917,2]
[367155895,1750677050499,-460.0,0.00021917,2]
[367155897,1750677050508,-460.0,0.00021917,2]
[367155898,1750677050517,-567.41,0.00021917,2]
[367155900,1750677050527,-460.0,0.00021917,2]
[367155902,1750677050536,-460.0,0.00021917,2]
[367155904,1750677050545,-616.64,0.00021917,2]
[367155906,1750677050555,-595.91,0.00021917,2]
[367155908,1750677050563,-460.0,0.00021917,2]
[367155910,1750677050572,-460.0,0.00021917,2]
[367155912,1750677050582,-460.0,0.00021917,2]
[367155914,1750677050591,-460.0,0.00021917,2]
[367155916,1750677050600,-918.09,0.00021917,2]
[367155918,1750677050609,-460.0,0.00021917,2]
[367155920,1750677050618,-261.91938211,0.00021917,2]
[367155922,1750677050627,-646.79,0.00021917,2]
[367155924,1750677050640,-3792.31,0.00021917,2]
[367155926,1750677050650,-460.0,0.00021917,2]
[367155928,1750677050660,-449.40386311,0.00021917,2]
[367155930,1750677050670,-460.0,0.00021917,2]
[367155932,1750677050679,-843.08,0.00021917,2]
[367155934,1750677050688,-460.0,0.00021917,2]
[367155936,1750677050697,-460.0,0.00021917,2]
[367155938,1750677050708,-460.0,0.00021917,2]
[367155940,1750677050718,-460.0,0.00021917,2]
[367155942,1750677050729,-460.0,0.00021917,2]
[367155944,1750677050738,-570.78,0.00021917,2]
[367155946,1750677050747,-460.0,0.00021917,2]
[367155948,1750677050756,-486.91930981,0.00021917,2]
[367155950,1750677050765,-460.0,0.00021917,2]
[367155952,1750677050774,-460.0,0.00021917,2]
[367155954,1750677050784,-460.0,0.00021917,2]
[367155956,1750677050794,-4705.29,0.00021917,2]
[367155958,1750677050803,-460.0,0.00021917,2]
[367155961,1750677050814,-460.0,0.00021917,2]
[367155962,1750677050823,-460.0,0.00021917,2]
[367155964,1750677050832,-1114.57,0.00021917,2]
[367155966,1750677050841,-1954.76,0.00021917,2]
[367155968,1750677050850,-482.74,0.00021917,2]
[367155970,1750677050859,-1330.71,0.00021917,2]
[367155972,1750677050869,-2386.05,0.00021917,2]
[367155974,1750677050879,-460.0,0.00021917,2]
[367155976,1750677050888,-787.27,0.00021917,2]
[367155978,1750677050897,-422.19053617,0.00021917,2]
[367155980,1750677050906,-460.0,0.00021917,2]
[367155982,1750677050915,-711.13,0.00021917,2]
[367155984,1750677050926,-1058.76,0.00021917,2]
[367155986,1750677050935,-1622.56,0.00021917,2]
[367155988,1750677050944,-460.0,0.00021917,2]
[367155990,1750677050954,-460.0,0.00021917,2]
[367155992,1750677050963,-460.0,0.00021917,2]
[367155994,1750677050972,-460.0,0.00021917,2]
[367155996,1750677050982,-460.0,0.00021917,2]
[367155998,1750677050992,-460.0,0.00021917,2]
[367156000,1750677051001,-1178.43,0.00021917,2]
[367156002,1750677051011,-924.9,0.00021917,2]
[367156004,1750677051021,-3710.79417713,0.00021917,2]
[367156033,1750677051289,-1043.34516783,0.00021917,2]
[367156035,1750677051301,-1652.40065504,0.00021917,2]
[367156037,1750677051310,-1797.82,0.00021917,2]
[367156039,1750677051320,-460.0,0.00021917,2]
[367156041,1750677051329,-484.8,0.00021917,2]
[367156043,1750677051339,-460.0,0.00021917,2]
[367156045,1750677051349,-399.76564696,0.00021917,2]
[367156047,1750677051360,-4570.0,0.00021917,2]
[367158246,1750677078487,150.0,0.00021541,30]
[367158247,1750677078893,150.0,0.00023499,30]
[367158249,1750677157035,150.0,0.00022554,30]
[367158250,1750677235240,150.0,0.00022556,30]
[367158253,1750677312158,150.0,0.0002255,30]
[367158256,1750677388350,150.0,0.00022487,30]
[367158257,1750677465326,150.0,0.00022563,30]
[367158258,1750677542710,150.0,0.00022562,30]
[367158260,1750677618316,150.0,0.00022565,30]
[367158261,1750677693691,150.0,0.00022568,30]
[367158262,1750677720102,157.560751,0.00013699,2]
[367158264,1750677772108,150.0,0.00022542,30]
[367158265,1750677848695,150.0,0.00022498,30]
[367158290,1750677911552,475.0,0.000181,10]
[367158292,1750677923758,150.0,0.00022508,30]
[367158294,1750677963933,-4058.0,0.00019619,2]
[367158298,1750677999428,150.0,0.00023388,30]
[367158300,1750678045148,-186.729592,0.00019554,2]
[367158301,1750678045171,-790.47179762,0.00019619,2]
[367158302,1750678045192,-151.0,0.00020058,5]
[367158303,1750678045214,-160.78797833,0.00020058,5]
[367158304,1750678045238,-168.0,0.00020146,2]
[367158305,1750678045260,-157.560751,0.00020187,2]
[367158306,1750678045281,-1824.3951601,0.00020323,2]
[367158307,1750678045303,-1000.0,0.00020424,2]
[367158308,1750678045324,-150.0,0.00020462,2]
[367158309,1750678045351,-168.0,0.00020617,2]
[367158310,1750678045372,-300.0,0.00020741,2]
[367158311,1750678045393,-1200.0,0.00020741,2]
[367158312,1750678045414,-300.0,0.00020741,2]
[367158313,1750678045435,-390.28926115,0.00020742,2]
[367158314,1750678045457,-176.38313031,0.00020742,2]
[367158315,1750678045482,-556.95830903,0.00020742,2]
[367158316,1750678045505,-180.02968507,0.00020742,2]
[367158317,1750678045532,-207.98318391,0.00020742,2]
[367158318,1750678045555,-500.0,0.00020742,2]
[367158319,1750678045577,-258.87843678,0.00020742,2]
[367158320,1750678052122,-152.40982549,0.00020742,2]
[367158321,1750678076659,150.0,0.00023388,30]
[367158322,1750678095559,-3000.0,0.00020535,2]
[367158323,1750678095579,-2737.6254339,0.0002067,2]
[367158324,1750678095600,-300.0,0.00020741,2]
[367158325,1750678095621,-88.71173773,0.00020742,2]
[367158326,1750678095642,-500.0,0.00020742,2]
[367158327,1750678095663,-500.0,0.00020742,2]
[367158328,1750678095684,-500.0,0.00020742,2]
[367158329,1750678095704,-1765.66282837,0.00020743,2]
[367158334,1750678153522,150.0,0.0002339,30]
[367158341,1750678230090,150.0,0.00022701,30]
[367158383,1750678232226,-2723.3991735,0.00020536,2]
[367158389,1750678232283,-861.95621008,0.00020536,2]
[367158391,1750678232292,-164.91663402,0.00020642,2]
[367158393,1750678232301,-164.91663401,0.00020782,2]
[367158395,1750678232313,-164.91663401,0.00020922,2]
[367158397,1750678232322,-500.0,0.00020929,2]
[367158399,1750678232331,-2231.58129443,0.0002093,2]
[367158532,1750678238264,-2152.0026506,0.0002093,2]
[367158533,1750678238276,-3327.6073494,0.0002093,2]
[367158534,1750678238288,-987.62077433,0.0002093,2]
[367158535,1750678238300,-586.87922871,0.0002093,2]
[367158597,1750678261055,150.0,0.000189,2]
[367158603,1750678305159,177.127961,0.00024,30]
[367158604,1750678308021,150.0,0.00022695,30]
[367158605,1750678388086,150.0,0.00023394,30]
[367158619,1750678467117,150.0,0.00023382,30]
[367158629,1750678547146,150.0,0.000227,30]
[367158631,1750678626562,150.0,0.00022782,30]
[367158634,1750678706015,150.0,0.00023387,30]
[367158636,1750678742232,-4201.69983347,0.00020306,2]
[367158637,1750678742252,-12.30016653,0.00020411,2]
[367158639,1750678784593,150.0,0.00023383,30]
[367158640,1750678864204,150.0,0.00022779,30]
[367158644,1750678944011,150.0,0.00022778,30]
[367158645,1750679025993,150.0,0.00023388,30]
[367158648,1750679065255,159.657607,0.00013699,2]
[367158649,1750679105489,150.0,0.00023385,30]
[367158655,1750679184202,150.0,0.00022684,30]
[367158657,1750679227086,-152.61646748,0.000197,2]
[367158658,1750679227108,-1437.49436029,0.00019753,2]
[367158659,1750679231093,-14092.56926732,0.00019567,2]
[367158660,1750679262822,150.0,0.00022779,30]
[367158661,1750679342549,150.0,0.00022787,30]
[367158662,1750679349148,-2567.77301828,0.0001937,2]
[367158663,1750679349171,-300.0,0.00019565,2]
[367158664,1750679349196,-178.5310651,0.00019566,2]
[367158665,1750679349221,-500.0,0.00019566,2]
[367158666,1750679349244,-500.0,0.00019566,2]
[367158667,1750679349267,-500.0,0.00019566,2]
[367158668,1750679349291,-500.0,0.00019566,2]
[367158669,1750679349315,-500.0,0.00019566,2]
[367158670,1750679349340,-500.0,0.00019566,2]
[367158671,1750679349363,-608.91803576,0.00019566,2]
[367158672,1750679349388,-500.0,0.00019566,2]
[367158673,1750679349410,-10807.43073268,0.00019567,2]
[367158674,1750679349432,-6404.74885391,0.00019753,2]
[367158675,1750679349453,-300.0,0.00019999,2]
[367158676,1750679349475,-3575.8626006,0.0002,2]
[367158677,1750679353070,-596.03921402,0.0002,2]
[367158678,1750679353091,-2599.5904381,0.00020192,2]
[367158679,1750679353111,-724.37034788,0.00020192,2]
[367158680,1750679428500,150.0,0.00022795,30]
[367158725,1750679437087,-521.13553475,0.0001911,2]
[367158727,1750679437097,-168.463362,0.000193,2]
[367158729,1750679437106,-207.23466,0.0001993,2]
[367158731,1750679437116,-1182.22513792,0.00020192,2]
[367158733,1750679437126,-160.0,0.00020301,2]
[367158735,1750679437135,-159.657607,0.00020548,2]
[367158737,1750679437144,-159.1393301,0.000206,2]
[367158739,1750679437153,-176.9609952,0.000206,2]
[367158741,1750679437162,-574.7458077,0.000206,2]
[367158743,1750679437172,-573.4946409,0.00020678,2]
[367158745,1750679437181,-1200.0,0.00020698,2]
[367158747,1750679437190,-300.0,0.00020699,2]
[367158748,1750679437199,-248.0,0.00020699,2]
[367158750,1750679437207,-300.0,0.00020699,2]
[367158752,1750679437217,-300.0,0.00020699,2]
[367158754,1750679437226,-177.3437282,0.000207,2]
[367158756,1750679437235,-852.5267768,0.000207,2]
[367158758,1750679437244,-159.1393301,0.000207,2]
[367158760,1750679437254,-177.3437282,0.00020878,2]
[367158763,1750679437263,-159.1393301,0.00020878,2]
[367158766,1750679437272,-574.7458077,0.00020878,2]
[367158769,1750679437282,-798.71637921,0.0002093,2]
[367158771,1750679437292,-177.3437282,0.00021,2]
[367158774,1750679437301,-574.7458077,0.00021,2]
[367158777,1750679437311,-153.0,0.00021,2]
[367158780,1750679437320,-159.1393301,0.00021,2]
[367158783,1750679437330,-184.37397616,0.00021162,2]
[367158788,1750679437341,-23.02602384,0.00021162,2]
[367158790,1750679437351,-295.27042381,0.00021198,2]
[367158792,1750679437362,-204.72957619,0.00021198,2]
[367158794,1750679437371,-456.54644842,0.00021198,2]
[367158796,1750679437380,-396.52397539,0.00021199,2]
[367158798,1750679437391,-6288.89376049,0.00021199,2]
[367158845,1750679438404,-18016.97057868,0.00021199,2]
[367158847,1750679438414,-306.0,0.000212,2]
[367158849,1750679438423,-306.0,0.000212,2]
[367158851,1750679438432,-159.1393301,0.000212,2]
[367158853,1750679438442,-177.3437282,0.000212,2]
[367158855,1750679438452,-574.7458077,0.000212,2]
[367158857,1750679438461,-168.0,0.00021279,2]
[367158859,1750679438471,-427.78431462,0.00021337,2]
[367158861,1750679438480,-220.0,0.00021388,2]
[367158863,1750679438489,-237.4908537,0.00021534,2]
[367158865,1750679438499,-5000.0,0.00021547,2]
[367158866,1750679438508,-220.0,0.00021699,2]
[367158867,1750679438518,-220.0,0.00021719,2]
[367158868,1750679438527,-420.0,0.00021777,2]
[367158869,1750679438537,-220.0,0.00021818,2]
[367158870,1750679438547,-220.0,0.00021885,2]
[367158871,1750679438556,-349.999999,0.0002189,2]
[367158872,1750679438566,-253.04737142,0.00021916,2]
[367158873,1750679438576,-500.0,0.00021916,2]
[367158874,1750679438586,-160.75921302,0.00021916,2]
[367158875,1750679438596,-500.0,0.00021916,2]
[367158876,1750679438605,-500.0,0.00021916,2]
[367158877,1750679438615,-500.0,0.00021916,2]
[367158878,1750679438625,-286.37854124,0.00021916,2]
[367158879,1750679438634,-500.0,0.00021916,2]
[367158880,1750679438644,-500.0,0.00021916,2]
[367158881,1750679438654,-500.0,0.00021916,2]
[367158882,1750679438663,-500.0,0.00021916,2]
[367158883,1750679438673,-500.0,0.00021916,2]
[367158884,1750679438682,-500.0,0.00021916,2]
[367158885,1750679438691,-500.0,0.00021916,2]
[367158886,1750679438701,-174.96,0.00021916,2]
[367158887,1750679438710,-46203.73894148,0.00021917,2]
[367158888,1750679438719,-460.0,0.00021917,2]
[367158889,1750679438729,-460.0,0.00021917,2]
[367158890,1750679438738,-658.01,0.00021917,2]
[367158891,1750679438747,-269.21543295,0.00021917,2]
[367158892,1750679438757,-519.30897647,0.00021917,2]
[367158893,1750679438767,-461.05888693,0.00021917,2]
[367158894,1750679438780,-460.0,0.00021917,2]
[367158895,1750679438791,-416.5142517,0.00021917,2]
[367158896,1750679438802,-460.0,0.00021917,2]
[367158897,1750679438812,-460.76137503,0.00021917,2]
[367158898,1750679438821,-623.23,0.00021917,2]
[367158899,1750679438830,-460.0,0.00021917,2]
[367158900,1750679438839,-460.0,0.00021917,2]
[367158901,1750679438850,-460.0,0.00021917,2]
[367158902,1750679438861,-460.0,0.00021917,2]
[367158903,1750679438870,-401.47228451,0.00021917,2]
[367158904,1750679438879,-460.0,0.00021917,2]
[367158905,1750679438889,-310.23055379,0.00021917,2]
[367158906,1750679438898,-368.0420577,0.00021917,2]
[367158907,1750679438908,-460.0,0.00021917,2]
[367158908,1750679438917,-563.15,0.00021917,2]
[367158909,1750679438928,-460.0,0.00021917,2]
[367158910,1750679438938,-460.0,0.00021917,2]
[367158911,1750679438948,-460.0,0.00021917,2]
[367158912,1750679438957,-460.0,0.00021917,2]
[367158913,1750679438966,-460.0,0.00021917,2]
[367158914,1750679438976,-460.0,0.00021917,2]
[367158915,1750679438985,-673.82,0.00021917,2]
[367158916,1750679438994,-460.0,0.00021917,2]
[367158917,1750679439003,-460.0,0.00021917,2]
[367158918,1750679439012,-198.75652941,0.00021917,2]
[367158919,1750679439022,-460.0,0.00021917,2]
[367158920,1750679439032,-460.0,0.00021917,2]
[367158921,1750679439041,-283.52233192,0.00021917,2]
[367158922,1750679439051,-460.0,0.00021917,2]
[367158923,1750679439060,-460.0,0.00021917,2]
[367158924,1750679439069,-460.0,0.00021917,2]
[367158925,1750679439078,-460.0,0.00021917,2]
[367158926,1750679439087,-460.0,0.00021917,2]
[367158927,1750679439096,-460.0,0.00021917,2]
[367158928,1750679439106,-460.0,0.00021917,2]
[367158929,1750679439115,-460.0,0.00021917,2]
[367158930,1750679439124,-460.0,0.00021917,2]
[367158931,1750679439134,-460.0,0.00021917,2]
[367158932,1750679439144,-460.0,0.00021917,2]
[367158933,1750679439153,-460.0,0.00021917,2]
[367158934,1750679439162,-714.15,0.00021917,2]
[367158935,1750679439172,-460.0,0.00021917,2]
[367158936,1750679439181,-460.0,0.00021917,2]
[367158937,1750679439190,-460.0,0.00021917,2]
[367158938,1750679439200,-460.0,0.00021917,2]
[367158939,1750679439209,-460.0,0.00021917,2]
[367158940,1750679439219,-460.0,0.00021917,2]
[367158941,1750679439228,-460.0,0.00021917,2]
[367158942,1750679439237,-460.0,0.00021917,2]
[367158943,1750679439246,-460.0,0.00021917,2]
[367158944,1750679439255,-460.0,0.00021917,2]
[367158945,1750679439265,-460.0,0.00021917,2]
[367158946,1750679439274,-460.0,0.00021917,2]
[367158947,1750679439284,-838.33,0.00021917,2]
[367158948,1750679439294,-460.0,0.00021917,2]
[367158949,1750679439303,-460.0,0.00021917,2]
[367158950,1750679439312,-460.0,0.00021917,2]
[367158951,1750679439321,-497.84,0.00021917,2]
[367158952,1750679439330,-460.0,0.00021917,2]
[367158953,1750679439340,-460.0,0.00021917,2]
[367158954,1750679439350,-252.01515,0.00021917,2]
[367158955,1750679439359,-460.0,0.00021917,2]
[367158956,1750679439368,-702.29,0.00021917,2]
[367158957,1750679439378,-722.89,0.00021917,2]
[367158958,1750679439387,-460.0,0.00021917,2]
[367158959,1750679439396,-434.02456389,0.00021917,2]
[367158960,1750679439406,-460.0,0.00021917,2]
[367158961,1750679439415,-460.0,0.00021917,2]
[367158962,1750679439424,-460.0,0.00021917,2]
[367158963,1750679439433,-460.0,0.00021917,2]
[367158964,1750679439442,-460.0,0.00021917,2]
[367158965,1750679439452,-460.0,0.00021917,2]
[367158966,1750679439461,-370.0,0.00021917,2]
[367158967,1750679439470,-460.0,0.00021917,2]
[367158968,1750679439479,-460.0,0.00021917,2]
[367158969,1750679439488,-460.0,0.00021917,2]
[367158970,1750679439498,-460.0,0.00021917,2]
[367158971,1750679439507,-460.0,0.00021917,2]
[367158972,1750679439515,-460.0,0.00021917,2]
[367158973,1750679439525,-460.0,0.00021917,2]
[367158974,1750679439534,-460.0,0.00021917,2]
[367158975,1750679439543,-460.0,0.00021917,2]